Cogmind - Beta 13 @@@ ROGUE MODE // 2024.07.10 @ 10:59:01 Player: ZergFTW Result: Destroyed by D-53 Grenadier with Mini Grenade Launcher Performance ------------- Evolutions (0) 0 Regions Visited (2) 400 Robots Destroyed (40) 200 Value Destroyed (572) 572 Prototype IDs (0) 0 Alien Tech Used (0) 0 Bonus (0) 0 TOTAL SCORE: 1172 Bonus ------- None Cogmind --------- Core Integrity 0/250 Matter 300/300 Energy 125/125 System Corruption 2% Temperature Cool (73) Movement Rolling (100) Location -10/Mines Parts ------- > --- POWER (1) -------- Light Ion Engine > --- PROPULSION (2) --- Compact Wheel Compact Wheel > --- UTILITY (2) ------ Large Storage Unit Sensor Array > --- WEAPON (2) ------- Grenade Launcher Grenade Launcher > --- INVENTORY (15) --- Light Ion Engine Wheel High-capacity Storage Unit High-capacity Matter Pod (200) Weight Redist. System Structural Scanner ECM Suite Light Armor Plating Medium Laser Assault Rifle Assault Rifle Assault Rifle Light Assault Rifle Grenade Launcher Mining Claw Peak State ------------ > --- POWER ------------ Light Ion Engine > --- PROPULSION ------- Light Treads Light Treads > --- UTILITY ---------- High-capacity Storage Unit Light Armor Plating > --- WEAPON ----------- Assault Rifle Assault Rifle > --- INVENTORY -------- Light Ion Engine Light Ion Engine Light Treads Compact Wheel Large Storage Unit Huge Storage Unit High-capacity Matter Pod Weight Redist. System Structural Scanner Sensor Array ECM Suite Light Armor Plating EM Pulse Gun Grenade Launcher Grenade Launcher Grenade Launcher Grenade Launcher Grenade Launcher Grenade Launcher Mining Claw [Rating: 9] Favorites ----------- Power Light Ion Engine Engine Light Ion Engine Propulsion Light Treads Treads Light Treads Leg Aluminum Leg Wheel Wheel Utility Light Armor Plating Device Sensor Array Storage High-capacity Storage Unit Protection Light Armor Plating Weapon Assault Rifle Energy Gun EM Pulse Gun Ballistic Gun Assault Rifle Launcher Grenade Launcher Slashing Weapon Mining Claw Build | -11 -10 -10 ------- Run | Yrd Mat Min Slots Evolved . | . . . Power . | . . . Propulsion . | . . . Utility . | . . . Weapon . | . . . Parts Attached 50 | 9 19 22 Power 4 | 1 2 1 Engine 4 | 1 2 1 Core . | . . . Reactor . | . . . Propulsion 16 | 4 7 5 Treads 4 | 2 2 . Leg 3 | . 3 . Wheel 9 | 2 2 5 Hover . | . . . Flight . | . . . Utility 12 | 2 5 5 Device 3 | 1 . 2 Storage 5 | 1 3 1 Processor . | . . . Hackware . | . . . Protection 4 | . 2 2 Artifact . | . . . Weapon 18 | 2 5 11 Energy Gun 4 | 1 1 2 Energy Cannon . | . . . Ballistic Gun 5 | 1 3 1 Ballistic Cannon . | . . . Launcher 8 | . 1 7 Special Weapon . | . . . Impact Weapon . | . . . Slashing Weapon 1 | . . 1 Piercing Weapon . | . . . Special Melee Weapon . | . . . Unidentified Prototypes . | . . . Parts Lost 7 | . 2 5 Power . | . . . Propulsion 2 | . . 2 Utility 2 | . 1 1 Weapon 3 | . 1 2 Highest Loss Streak 5 | . 1 5 To Critical Strikes . | . . . Average Slot Usage (%) 99 | . 99 98 Engine 14 | . 14 14 Treads 14 | . 18 . Leg 7 | . 6 12 Wheel 5 | . 3 15 Device 2 | . . 12 Storage 14 | . 14 14 Protection 11 | . 13 1 Energy Gun 4 | . 4 6 Ballistic Gun 20 | . 23 6 Launcher 2 | . . 13 Naked Turns . | . . . Heaviest Build 93 | 15 93 52 Greatest Support 40 | 40 40 32 Greatest Overweight (x) 4 | 1 4 2 Average Overweight (x) 1 | . 1 . Largest Inventory Capacity 25 | 8 25 20 Average Capacity 19 | 7 20 17 Most Carried 20 | 7 20 20 Average Carried 16 | 4 17 17 Final Capacity 20 | 8 20 15 Final Carried 20 | 7 20 15 Class Distribution -------------------- 94% | Mutant 5% | Scavenger-Mutant Dominant Class ---------------- Mutant | -10/Materials Mutant | -10/Mines Resources | -11 -10 -10 ----------- Run | Yrd Mat Min Matter Collected 1368 | 370 669 329 Remotely . | . . . Salvage Created 1019 | 194 673 152 Parts 83 | 11 58 14 Haulers Intercepted 2 | . 2 . Recyclers Shooed 2 | 1 . 1 Parts Field Recycled . | . . . Retrieved Matter . | . . . Parts Self-Destructed . | . . . Prevented . | . . . Kills | -11 -10 -10 ------- Run | Yrd Mat Min Combat Hostiles Destroyed 29 | . 12 17 Guns 8 | . 7 1 AOE 21 | . 5 16 Classes Destroyed 10 | 3 6 1 Worker 4 | 2 1 1 Builder 5 | . 5 . Tunneler 5 | 3 . 2 Hauler 2 | . 2 . Recycler 2 | 1 . 1 Operator 2 | . 2 . Watcher 3 | . 3 . Swarmer 8 | . 3 5 Grunt 9 | . 9 . Assembled 12 | . . 12 Best Kill Streak 12 | 3 5 12 Combat Bots Only 12 | . 5 12 Max Kills in Single Turn 5 | 1 3 5 Gunslinging . | . . . Exploded 5 | . 3 5 Melee . | . . . Uniques/NPCs Destroyed . | . . . Combat | -11 -10 -10 -------- Run | Yrd Mat Min Hostile Shots Fired 151 | . 84 67 Missed 37 | . 18 19 Damage Taken 1666 | . 878 788 Core 288 | . 172 116 Absorbed by Shields . | . . . Regen/Repaired (Parts) 123 | . 123 . Core Remaining (%) 100 | 100 . . Volleys Fired 93 | 15 65 13 Largest 2 | 2 2 2 Hottest 70 | 60 60 70 Shots Fired 184 | 30 130 24 Gun 170 | 30 127 13 Cannon . | . . . Launcher 14 | . 3 11 Special . | . . . Kinetic 121 | 15 98 8 Thermal 5 | . . 5 Explosive 14 | . 3 11 Electromagnetic 44 | 15 29 . Robot Hit Streak 16 | 8 16 5 Robot Miss Streak 5 | 3 5 1 Penetration Max . | . . . Secondary Targets 1 | . 1 . Max Gunslinging Chain 1 | . 1 . Shots Hit Robots 107 | 18 72 17 Core Hits 73 | 7 36 30 Critical Kills . | . . . Critical Parts Destroyed . | . . . Critical Strikes . | . . . Melee Attacks 2 | . . 2 Impact . | . . . Slashing 2 | . . 2 Piercing . | . . . Sneak Attacks 2 | . . 2 Combat Hostiles . | . . . Follow-up Attacks . | . . . Damage Inflicted 2702 | 246 1241 1215 Guns 1310 | 246 947 117 Cannons . | . . . Explosions 1293 | . 294 999 Melee 99 | . . 99 Ramming . | . . . Kinetic 855 | 116 659 80 Thermal 71 | . 34 37 Explosive 1259 | . 260 999 Electromagnetic 418 | 130 288 . Impact . | . . . Slashing 99 | . . 99 Piercing . | . . . Highest Corruption 2 | . . 2 Average Corruption 2 | . . 2 Corruption Purged . | . . . Corruption Blocked . | . . . Effects 3 | . . 3 Heat Flow Errors 2 | . . 2 Alerts 1 | . . 1 Overload Shots . | . . . Overflow Damage 52 | . 8 44 Projectiles . | . . . Explosions 42 | . 8 34 Melee 10 | . . 10 Knockbacks . | . . . Impact . | . . . Kinetic . | . . . Secondary . | . . . Self-Inflicted Damage 69 | . . 69 Shots 2 | . . 2 Rammed . | . . . Targets Rammed . | . . . Kicked . | . . . Crushed . | . . . Highest Temperature 215 | . 105 215 Average Temperature 27 | . 24 37 Received Heat Transfer 573 | . 513 60 Siege Activations . | . . . Robots Corrupted . | . . . Combat Hostiles . | . . . Parts Fried . | . . . Impact Corruptions . | . . . Robots Melted . | . . . Combat Hostiles . | . . . Parts Melted . | . . . Heat Transferred 161 | . 50 111 Parts Sabotaged . | . . . Parts Stolen . | . . . Parts Stripped . | . . . Power Chain Reactions 1 | . 1 . Alert | -11 -10 -10 ------- Run | Yrd Mat Min Peak Influence 218 | 30 218 171 Initial 27 | . 19 27 Average 58 | 14 56 82 Maximum Alert Level 1 | . 1 . Low Security (%) 97 | 100 96 100 Level 1 2 | . 3 . Level 2 . | . . . Level 3 . | . . . Level 4 . | . . . Level 5 . | . . . High Security . | . . . Max Security . | . . . Squads Dispatched 2 | . 2 . Investigation 1 | . 1 . Extermination . | . . . Reinforcement 1 | . 1 . Assault . | . . . Garrison . | . . . Intercept . | . . . Searches Triggered . | . . . Construction Impeded . | . . . Haulers Reinforced . | . . . Active Scanning Responses . | . . . Cargo Convoy Interrupts . | . . . Stealth | -11 -10 -10 --------- Run | Yrd Mat Min Distress Signals 3 | . 3 . Communications Jammed . | . . . Distress Signals . | . . . Times Spotted 47 | . 23 24 Peak Tracking Total 12 | . 5 12 Tactical Retreats 1 | . . 1 Traps | -11 -10 -10 ------- Run | Yrd Mat Min Traps Triggered 1 | . 1 . Indirectly . | . . . Trap Hack Attempts . | . . . Triggered . | . . . Disarmed . | . . . Reprogrammed . | . . . Reused . | . . . Traps Extracted . | . . . Installed . | . . . Triggered . | . . . Machines | -11 -10 -10 ---------- Run | Yrd Mat Min Machines Disabled . | . . . Max in Single Turn . | . . . Machines Repaired . | . . . Machines Dismantled . | . . . Machines Sabotaged . | . . . Overloaded Fab Kills . | . . . Hacking | -11 -10 -10 --------- Run | Yrd Mat Min Machines Accessed 10 | . 10 . Terminals 7 | . 7 . Fabricators . | . . . Repair Stations 1 | . 1 . Recycling Units 2 | . 2 . Scanalyzers . | . . . Garrison Access . | . . . Total Hacks 39 | . 39 . Successful 22 | . 22 . Failed 17 | . 17 . Catastrophic 3 | . 3 . Database Lockouts . | . . . Manual 24 | . 24 . Terminals 24 | . 24 . Fabricators . | . . . Repair Stations 7 | . 7 . Recycling Units 8 | . 8 . Scanalyzers . | . . . Garrison Access . | . . . Terminal Hacks 5 | . 5 . Robot Analysis 4 | . 4 . Branch Access Points 1 | . 1 . Fabricator Hacks . | . . . Repair Station Hacks 6 | . 6 . Scan Component 4 | . 4 . Repair 2 | . 2 . Recycling Unit Hacks 6 | . 6 . Process 1 | . 1 . Report Inventory 2 | . 2 . Retrieve Matter 1 | . 1 . Retrieve Components 2 | . 2 . Scanalyzer . | . . . Garrison Access Hacks . | . . . Unauthorized Hacks 5 | . 5 . Terminals 5 | . 5 . Botnet 5 | . 5 . Fabricators . | . . . Repair Stations . | . . . Recycling Units . | . . . Scanalyzers . | . . . Garrison Access . | . . . Data Cores Recovered 1 | . 1 . Used . | . . . Hacking Detections 10 | . 10 . Full Trace Events 1 | . 1 . Feedback Events . | . . . Feedback Blocked . | . . . Robot Schematics Acquired . | . . . Robots Built . | . . . Authchips . | . . . Time . | . . . Total Robot Build Rating . | . . . Part Schematics Acquired . | . . . Parts Built . | . . . Authchips . | . . . Time . | . . . Total Part Build Rating . | . . . Parts Repaired 2 | . 2 . Time 52 | . 52 . Parts Recycled . | . . . Recycled Matter 91 | . 91 . Retrieved Matter 130 | . 130 . Retrieved Components 12 | . 12 . Parts Scanalyzed . | . . . Part Schematics Acquired . | . . . Parts Damaged . | . . . Bothacking | -11 -10 -10 ------------ Run | Yrd Mat Min Used RIF Installer . | . . . Robots Hacked . | . . . Non-combat . | . . . Combat . | . . . Robot Hacks Applied . | . . . Relay Couplers Released . | . . . Fabnet Peak Effective % . | . . . Robots Rewired . | . . . Allies Hacked . | . . . Hacks Repelled . | . . . Allies | -11 -10 -10 -------- Run | Yrd Mat Min Total Allies . | . . . Largest Group . | . . . Highest-Rated Group . | . . . Highest-Rated Ally . | . . . Total Orders . | . . . Ally Attacks . | . . . Total Damage . | . . . Kills . | . . . Allies Corrupted . | . . . Allies Melted . | . . . Intel | -11 -10 -10 ------- Run | Yrd Mat Min Robot Analysis Total 4 | . 4 . Derelict Logs Recovered . | . . . Drone Launches . | . . . Drone Recoveries . | . . . Exploration | -11 -10 -10 ------------- Run | Yrd Mat Min Turns Passed 3832 | 207 2977 648 Spaces Moved 1634 | 96 1135 403 Core 3 | 3 . . Treads 791 | 82 709 . Legs 334 | . 233 101 Wheels 506 | 11 193 302 Hover . | . . . Flight . | . . . Fastest Speed 50 | 50 140 100 Average Speed 202 | 148 228 141 Slowest Speed 480 | 160 480 260 Overloaded Moves . | . . . Propulsion Burnouts . | . . . Robots Hopped . | . . . Cave-ins Triggered . | . . . Exploration Rate (%) 56 | 5 99 64 Regions Visited 2 Branch Regions 1 Pre-discovered Areas . | . . . Known Exits Taken 1 | . 1 . Unknown Exits Taken 1 | 1 . . Scrap Searched 1 | . . 1 Spaces Dug . | . . . Terrain Destroyed 109 | . 24 85 Melee . | . . . Projectile . | . . . AOE 109 | . 24 85 Terrain Rammed . | . . . Walls Destroyed . | . . . Machines Disabled . | . . . Actions | -11 -10 -10 --------- Run | Yrd Mat Min Total 1964 | 126 1390 448 Wait 127 | . 127 . Move 1632 | 95 1134 403 Hop . | . . . Pick Up 36 | 6 27 3 Fast Attach 12 | 8 4 . Attach 7 | . 2 5 Detach 1 | 1 . . Swap 31 | 1 13 17 Drop 23 | . 18 5 Fire 93 | 15 65 13 Melee 2 | . . 2 Ram . | . . . Kick . | . . . Crush . | . . . Escape Stasis . | . . . Rewire . | . . . Trap . | . . . Miscellaneous . | . . . Route ------- -11/Scrapyard -10/Materials (discovered 4 exits: [*Mat x3] / *Min) -10/Mines History --------- Turn | Location | Event 18 | -11/Scrapyard | Discovered new exit (range 15) 208 | -11/Scrapyard | Entered Materials 307 | -10/Materials | Build established: Mutant 343 | -10/Materials | Discovered new exit (range 7) 801 | -10/Materials | Discovered new exit (range 13) 884 | -10/Materials | Identified exit to Mines 1227 | -10/Materials | Core integrity fell below 50% 1660 | -10/Materials | Discovered new exit (range 5) 1859 | -10/Materials | Discovered new exit (range 12) 2388 | -10/Materials | Repaired Assault Rifle 2415 | -10/Materials | Repaired Assault Rifle 3185 | -10/Materials | Entered Mines 3429 | -10/Mines | Assembled infested the area 3434 | -10/Mines | Assisted by a Guerilla fighting off Assembled 3456 | -10/Mines | Core integrity fell below 20% 3499 | -10/Mines | Lost 5 parts (2n1u2w) 3503 | -10/Mines | Destroyed 12 combat bots 3833 | -10/Mines | Destroyed by D-53 Grenadier with Mini Grenade Launcher Last Messages --------------- 03691_ U-05 Engineer builds a Wall. 03693_ Acquired Lgt. Assault Rifle. 03694_ U-05 Engineer lays Concrete. 03695_ U-05 Engineer builds a Wall. 03696_ U-05 Engineer lays Concrete. 03703_ Dropped Lgt. Ion Engine. 03704_ U-05 Engineer lays Concrete. 03721_ K-01 Serf collects debris. 03726_ Acquired 1 matter. 03734_ Acquired 9 matter. 03760_ Searching scrap... 03760_ Found Sml. Laser. 03760_ Found Flight Unit. 03760_ Found Hover Unit. 03760_ Found Assault Rifle. 03760_ Found Authchip [Processor]. 03760_ Found 17 Matter. 03762_ Dropped EM Pulse Gun. 03762_ Acquired Assault Rifle. 03831_ System corrupted: Heat flow error (+113). Map ----- +----------------------------------------------------+ | ????# #???????## #####??# | | ????? #???????## ! #?????## # | | ?????###???????# ###?????? # | | ###?????????????# ## #???????? | | ???????????????# ## #####???## # # | | ??????????????# ### #???# | | ??????????????# ##?# #???## # | | ??????????????## ####??## ## ##### # | | ???????????????### #???????## ### ## ## # | | ?????????????????###?????????####?# ## ### | | ??????????????????????????????????# # ## | | ??????????????????????????????????# # | | ?????????????????????# ? ##?????## "" # | | ????????????????????? #????## """ ### | | ?????????????????????? """ ???## """ ## | | ?????????????????????? """d???## | | ???????????????????????""" ### | | ??????????????????????? ??## ## ##?## #### | | ???????????????????????? ??## ### #???### #??# | | ???????????????????????? d#?## ### #?????## ??# | | ????????????????????????# #?# ## ######??#### | | ????????????????????????# #?# % #???## | | ????????????????????????# #?# #### | | ????????????????????????# #?## #### | | ????????????????????????# #??# ##??# # | | ????????????????????????#@#### ###???# ## | | ????????????????????????# #?????# ##? | | ????????????????????????###### #????## ##?? | | ?????????????????????????????# #????# ##?? | | ?????????????????????????????# ###### #### ### | | ?????????????????????????????# # | | ?????????????????????????????# ######### %* | | ????????????????????????????## ######## ### | | ????????????????????????????# [!= #?# | | ????????????????????????????# [ %= #?## | | ????????????????????????????# #########??## | | ????????????????????????????# ##???????????### | | ????????????????????????????# ##??????????????## | | ????????????????????????????# ######???????????# | | ????????????????????????????# ## ##??????????# | | ????????????????????????????## #??????????# | | ?????????????????????????????## #??????????# | | ??????????????????????????????## #??????????? | | ???????????????????????????????## ##??????????? | | ????????????????????????????????######???????????? | | ?????????????????????????????????????????????????? | | ?????????????????????????????????????????????????? | | ?????????????????????????????????????????????????? | | ?????????????????????????????????????????????????? | | ?????????????????????????????????????????????????? | +----------------------------------------------------+ Best States ------------- Heat Dissipation 25 Energy Generation 10 Energy Capacity 250 Matter Stores 300 Matter Capacity 300 Sight Range 16 Robot Scan Range 14 Terrain Scan Density 10 Armor Coverage 150 Evasion (%) 44 Recoil Reduction 2 Item Schematics ----------------- None Robot Schematics ------------------ None Fabricated ------------ Nothing Alien Tech Used ----------------- None Achievements -------------- None Challenges ------------ None Game ------ Seed ForceStructuralGreatsword Manual? 0 Play Time 00:26:05 Cumulative 65.5 hours Start 2024.07.10 @ 10:35:50 End 2024.07.10 @ 10:59:01 Sessions 1 Manual Loads 0 Difficulty Rogue Special Mode None Game No. 49 Rogue 48 Adventurer 1 Explorer 0 Win Type - Total 0 Types 0/0/0/0/0/0/0/0/0 Lore% 28 Gallery% 33 Achievement% 30 Wizard Run 0 Options --------- Layout 1 ASCII 0 Keyboard 0 Movement Mouse Keybinds 0 Fullscreen 1 Font 24/Proggy Map View 76x35 Zoom Use 0% Tactical HUD 1 Map Filters NONE Filters NONE Steam 1 RUN: fa528036-acc6-4606-a268-68fe3c757765